fUST/lending_fUST_20250519
["ID","MTS","AMOUNT","RATE_DAILY","PERIOD"]
[361530184,1747599059750,-476.55,0.00015616,2]
[361530185,1747599059759,-450.0,0.00015616,2]
[361530186,1747599059768,-475.35,0.00015616,2]
[361530187,1747599059777,-450.0,0.00015616,2]
[361530189,1747599059787,-474.34,0.00015616,2]
[361530191,1747599059798,-450.0,0.00015616,2]
[361530193,1747599059807,-450.0,0.00015616,2]
[361530195,1747599059817,-808.37,0.00015616,2]
[361530197,1747599059826,-450.0,0.00015616,2]
[361530199,1747599059835,-462.86,0.00015616,2]
[361530201,1747599059844,-450.0,0.00015616,2]
[361530203,1747599059855,-450.0,0.00015616,2]
[361530205,1747599059864,-450.0,0.00015616,2]
[361530207,1747599059876,-800.52,0.00015616,2]
[361530209,1747599059885,-2000.0,0.00015616,2]
[361530211,1747599059895,-1000.99376353,0.00015616,2]
[361530213,1747599059905,-2000.0,0.00015616,2]
[361530215,1747599059914,-2000.0,0.00015616,2]
[361530217,1747599059924,-2000.0,0.00015616,2]
[361530219,1747599059933,-1967.77703281,0.00015616,2]
[361530221,1747599059943,-2000.0,0.00015616,2]
[361530223,1747599059952,-2000.0,0.00015616,2]
[361530225,1747599059961,-1501.664656,0.00015616,2]
[361530227,1747599059970,-2000.0,0.00015616,2]
[361530229,1747599059979,-2000.0,0.00015616,2]
[361530231,1747599059989,-2000.0,0.00015616,2]
[361530233,1747599059998,-2000.0,0.00015616,2]
[361530235,1747599060007,-2000.0,0.00015616,2]
[361530237,1747599060017,-2000.0,0.00015616,2]
[361530239,1747599060026,-2000.0,0.00015616,2]
[361530241,1747599060036,-2000.0,0.00015616,2]
[361530243,1747599060046,-2000.0,0.00015616,2]
[361530245,1747599060055,-2000.0,0.00015616,2]
[361530247,1747599060064,-2000.0,0.00015616,2]
[361530249,1747599060074,-1121.38207907,0.00015616,2]
[361530251,1747599060084,-2000.0,0.00015616,2]
[361530253,1747599060094,-575.7398187,0.00015616,2]
[361530255,1747599060104,-450.0,0.00015753,2]
[361530257,1747599060114,-159.75,0.00015753,2]
[361530259,1747599060123,-450.0,0.00015753,2]
[361530261,1747599060132,-818.48,0.00015753,2]
[361530263,1747599060141,-450.0,0.00015753,2]
[361530265,1747599060151,-450.0,0.00015753,2]
[361530267,1747599060160,-240.45,0.00015753,2]
[361530269,1747599060170,-450.0,0.00015753,2]
[361530271,1747599060179,-191.09,0.00015753,2]
[361530273,1747599060188,-450.0,0.00015753,2]
[361530275,1747599060197,-511.63,0.00015753,2]
[361530277,1747599060206,-450.0,0.00015753,2]
[361530279,1747599060216,-655.93,0.00015753,2]
[361530281,1747599060227,-1017.79,0.00015753,2]
[361530283,1747599060236,-450.0,0.00015753,2]
[361530285,1747599060246,-511.13,0.00015753,2]
[361530287,1747599060256,-450.0,0.00015753,2]
[361530289,1747599060266,-450.0,0.00015753,2]
[361530291,1747599060276,-450.0,0.00015753,2]
[361530293,1747599060286,-450.0,0.00015753,2]
[361530295,1747599060295,-452.55,0.00015753,2]
[361530297,1747599060304,-565.0,0.00015753,2]
[361530299,1747599060313,-3969.3,0.00015753,2]
[361530301,1747599060323,-450.0,0.00015753,2]
[361530303,1747599060332,-450.0,0.00015753,2]
[361530305,1747599060341,-638.0,0.00015753,2]
[361530307,1747599060350,-450.0,0.00015753,2]
[361530309,1747599060362,-584.07,0.00015753,2]
[361530311,1747599060371,-2973.48,0.00015753,2]
[361530313,1747599060381,-450.0,0.00015753,2]
[361530315,1747599060390,-516.98,0.00015753,2]
[361530317,1747599060399,-903.99,0.00015753,2]
[361530319,1747599060408,-1439.98,0.00015753,2]
[361530321,1747599060417,-450.0,0.00015753,2]
[361530323,1747599060426,-1871.7,0.00015753,2]
[361530325,1747599060435,-450.0,0.00015753,2]
[361530327,1747599060444,-450.0,0.00015753,2]
[361530329,1747599060453,-658.62,0.00015753,2]
[361530331,1747599060463,-587.22754846,0.00015753,2]
[361530333,1747599060472,-2922.35,0.00015753,2]
[361530336,1747599060482,-1200.13,0.00015753,2]
[361530337,1747599060491,-547.54,0.00015753,2]
[361530339,1747599060500,-450.0,0.00015753,2]
[361530341,1747599060509,-450.71,0.00015753,2]
[361530343,1747599060518,-450.0,0.00015753,2]
[361530345,1747599060527,-605.53,0.00015753,2]
[361530347,1747599060537,-450.0,0.00015753,2]
[361530349,1747599060547,-450.0,0.00015753,2]
[361530351,1747599060557,-476.55,0.00015753,2]
[361530354,1747599060567,-450.0,0.00015753,2]
[361530356,1747599060576,-475.35,0.00015753,2]
[361530358,1747599060585,-450.0,0.00015753,2]
[361530360,1747599060596,-474.34,0.00015753,2]
[361530362,1747599060606,-450.0,0.00015753,2]
[361530364,1747599060615,-450.0,0.00015753,2]
[361530366,1747599060625,-808.37,0.00015753,2]
[361530368,1747599060633,-322.40363248,0.00015753,2]
[361530370,1747599060643,-462.86,0.00015753,2]
[361530372,1747599060652,-450.0,0.00015753,2]
[361530374,1747599060662,-450.0,0.00015753,2]
[361530376,1747599060672,-303.62052649,0.00015753,2]
[361530378,1747599060682,-800.52,0.00015753,2]
[361530380,1747599060691,-341.79771488,0.00015769,2]
[361530382,1747599060701,-158.0682864,0.00015863,2]
[361530384,1747599060712,-158.0682864,0.00015863,2]
[361530386,1747599060721,-158.0682864,0.00015863,2]
[361530388,1747599060730,-569.6479192,0.00015863,2]
[361530390,1747599060739,-158.0682864,0.00015863,2]
[361530392,1747599060749,-569.6479192,0.00015863,2]
[361530394,1747599060758,-158.0682864,0.00015863,2]
[361530396,1747599060767,-569.6479192,0.00015863,2]
[361530398,1747599060777,-569.6479192,0.00015863,2]
[361530400,1747599060786,-569.6479192,0.00015863,2]
[361530402,1747599060797,-450.0,0.0001589,2]
[361530404,1747599060807,-450.0,0.0001589,2]
[361530406,1747599060816,-818.48,0.0001589,2]
[361530407,1747599060825,-450.0,0.0001589,2]
[361530409,1747599060835,-450.0,0.0001589,2]
[361530411,1747599060845,-450.0,0.0001589,2]
[361530413,1747599060855,-450.0,0.0001589,2]
[361530415,1747599060864,-511.63,0.0001589,2]
[361530417,1747599060873,-450.0,0.0001589,2]
[361530419,1747599060883,-655.93,0.0001589,2]
[361530421,1747599060893,-1017.79,0.0001589,2]
[361530423,1747599060903,-450.0,0.0001589,2]
[361530425,1747599060912,-511.13,0.0001589,2]
[361530428,1747599060922,-450.0,0.0001589,2]
[361530430,1747599060932,-450.0,0.0001589,2]
[361530431,1747599060941,-450.0,0.0001589,2]
[361530433,1747599060950,-450.0,0.0001589,2]
[361530435,1747599060959,-452.55,0.0001589,2]
[361530437,1747599060969,-565.0,0.0001589,2]
[361530439,1747599060978,-3969.3,0.0001589,2]
[361530442,1747599060988,-322.39645475,0.0001589,2]
[361530444,1747599060997,-450.0,0.0001589,2]
[361530446,1747599061006,-638.0,0.0001589,2]
[361530447,1747599061016,-450.0,0.0001589,2]
[361530449,1747599061025,-584.07,0.0001589,2]
[361530451,1747599061034,-2973.48,0.0001589,2]
[361530453,1747599061044,-590.51,0.0001589,2]
[361530455,1747599061053,-516.98,0.0001589,2]
[361530457,1747599061062,-903.99,0.0001589,2]
[361530459,1747599061071,-1439.98,0.0001589,2]
[361530461,1747599061080,-450.0,0.0001589,2]
[361530463,1747599061089,-1871.7,0.0001589,2]
[361530465,1747599061098,-450.0,0.0001589,2]
[361530468,1747599061110,-589.03,0.0001589,2]
[361530469,1747599061120,-658.62,0.0001589,2]
[361530472,1747599061129,-2922.35,0.0001589,2]
[361530473,1747599061139,-1200.13,0.0001589,2]
[361530476,1747599061148,-547.54,0.0001589,2]
[361530478,1747599061157,-450.0,0.0001589,2]
[361530480,1747599061167,-450.0,0.0001589,2]
[361530481,1747599061177,-605.53,0.0001589,2]
[361530483,1747599061187,-450.0,0.0001589,2]
[361530485,1747599061196,-450.0,0.0001589,2]
[361530488,1747599061206,-476.55,0.0001589,2]
[361530490,1747599061215,-450.0,0.0001589,2]
[361530491,1747599061224,-475.35,0.0001589,2]
[361530494,1747599061235,-450.0,0.0001589,2]
[361530496,1747599061244,-450.0,0.0001589,2]
[361530497,1747599061254,-474.34,0.0001589,2]
[361530500,1747599061264,-450.0,0.0001589,2]
[361530501,1747599061274,-808.37,0.0001589,2]
[361530503,1747599061284,-462.86,0.0001589,2]
[361530505,1747599061293,-450.0,0.0001589,2]
[361530508,1747599061303,-450.0,0.0001589,2]
[361530509,1747599061312,-800.52,0.0001589,2]
[361530512,1747599061322,-1000.0,0.00016,16]
[361530514,1747599061331,-5000.0,0.00016,2]
[361530516,1747599061341,-5000.0,0.00016,2]
[361530517,1747599061350,-5000.0,0.00016,2]
[361530520,1747599061362,-5000.0,0.00016,2]
[361530521,1747599061371,-3000.0,0.00016,2]
[361530523,1747599061380,-998.55070715,0.00016,3]
[361530525,1747599061390,-12636.50182523,0.00016,3]
[361530527,1747599061399,-314.4327999,0.00016,3]
[361530530,1747599061408,-160.0,0.00016,3]
[361530532,1747599061418,-3000.0,0.0001601,2]
[361530534,1747599061427,-3000.0,0.0001602,2]
[361530535,1747599061436,-3694.30237394,0.00016027,2]
[361530537,1747599061445,-450.0,0.00016027,2]
[361530539,1747599061454,-554.09,0.00016027,2]
[361530542,1747599061463,-818.48,0.00016027,2]
[361530543,1747599061472,-450.0,0.00016027,2]
[361530546,1747599061482,-450.0,0.00016027,2]
[361530548,1747599061491,-450.0,0.00016027,2]
[361530549,1747599061500,-450.0,0.00016027,2]
[361530551,1747599061509,-511.63,0.00016027,2]
[361530553,1747599061519,-450.0,0.00016027,2]
[361530555,1747599061528,-655.93,0.00016027,2]
[361530557,1747599061537,-1017.79,0.00016027,2]
[361530559,1747599061547,-450.0,0.00016027,2]
[361530561,1747599061556,-511.13,0.00016027,2]
[361530563,1747599061566,-450.0,0.00016027,2]
[361530565,1747599061575,-450.0,0.00016027,2]
[361530567,1747599061585,-450.0,0.00016027,2]
[361530569,1747599061594,-474.25127045,0.00016027,2]
[361530571,1747599061606,-452.55,0.00016027,2]
[361530574,1747599061615,-565.0,0.00016027,2]
[361530576,1747599061624,-3969.3,0.00016027,2]
[361530577,1747599061634,-450.0,0.00016027,2]
[361530579,1747599061643,-638.0,0.00016027,2]
[361530582,1747599061652,-431.40099877,0.00016027,2]
[361530583,1747599061661,-584.07,0.00016027,2]
[361530585,1747599061671,-2973.48,0.00016027,2]
[361530587,1747599061681,-516.98,0.00016027,2]
[361530589,1747599061690,-903.99,0.00016027,2]
[361530591,1747599061699,-1439.98,0.00016027,2]
[361530593,1747599061712,-1871.7,0.00016027,2]
[361530595,1747599061721,-450.0,0.00016027,2]
[361530597,1747599061730,-658.62,0.00016027,2]
[361530600,1747599061740,-2922.35,0.00016027,2]
[361530601,1747599061750,-1200.13,0.00016027,2]
[361530603,1747599061760,-547.54,0.00016027,2]
[361530606,1747599061769,-450.0,0.00016027,2]
[361530607,1747599061778,-563.45,0.00016027,2]
[361530609,1747599061788,-605.53,0.00016027,2]
[361530612,1747599061800,-450.0,0.00016027,2]
[361530614,1747599061810,-287.62,0.00016027,2]
[361530615,1747599061819,-476.55,0.00016027,2]
[361530617,1747599061828,-450.0,0.00016027,2]
[361530619,1747599061837,-475.35,0.00016027,2]
[361530622,1747599061848,-450.0,0.00016027,2]
[361530623,1747599061859,-450.0,0.00016027,2]
[361530625,1747599061869,-474.34,0.00016027,2]
[361530627,1747599061879,-450.0,0.00016027,2]
[361530639,1747599061979,-808.37,0.00016027,2]
[361530641,1747599062001,-462.86,0.00016027,2]
[361530644,1747599062011,-450.0,0.00016027,2]
[361530646,1747599062020,-450.0,0.00016027,2]
[361530648,1747599062030,-800.52,0.00016027,2]
[361530650,1747599062039,-3000.0,0.0001603,2]
[361530652,1747599062049,-3000.0,0.0001604,2]
[361530654,1747599062058,-3000.0,0.0001605,2]
[361530655,1747599062067,-3000.0,0.0001606,2]
[361530657,1747599062077,-3000.0,0.0001607,2]
[361530659,1747599062086,-3000.0,0.0001608,2]
[361530661,1747599062095,-304.56402476,0.00016089,2]
[361530662,1747599062106,-3000.0,0.0001609,2]
[361530664,1747599062115,-3000.0,0.000161,2]
[361530666,1747599062125,-3000.0,0.0001611,2]
[361530668,1747599062134,-500.0,0.00016114,2]
[361530671,1747599062145,-500.0,0.00016114,2]
[361530673,1747599062155,-500.0,0.00016114,2]
[361530675,1747599062164,-531.05486349,0.00016114,2]
[361530677,1747599062173,-302.29643765,0.00016114,2]
[361530679,1747599062183,-500.0,0.00016117,2]
[361530681,1747599062193,-500.0,0.00016118,2]
[361530683,1747599062202,-500.0,0.00016118,2]
[361530685,1747599062212,-500.0,0.00016118,2]
[361530687,1747599062223,-500.0,0.00016118,2]
[361530689,1747599062232,-500.29367863,0.00016118,2]
[361530691,1747599062242,-517.45561311,0.00016118,2]
[361530693,1747599062251,-600.0,0.00016118,2]
[361530695,1747599062261,-555.75459255,0.00016118,2]
[361530697,1747599062270,-500.0,0.00016118,2]
[361530699,1747599062279,-500.0,0.00016118,2]
[361530701,1747599062289,-3000.0,0.0001612,2]
[361530703,1747599062298,-3000.0,0.0001613,2]
[361530705,1747599062307,-3000.0,0.0001614,2]
[361530707,1747599062317,-3000.0,0.0001615,2]
[361530709,1747599062326,-3000.0,0.0001616,2]
[361530711,1747599062335,-399.12365781,0.00016164,2]
[361530713,1747599062344,-818.48,0.00016164,2]
[361530715,1747599062354,-450.0,0.00016164,2]
[361530717,1747599062364,-450.0,0.00016164,2]
[361530719,1747599062373,-450.0,0.00016164,2]
[361530721,1747599062383,-450.0,0.00016164,2]
[361530723,1747599062393,-511.63,0.00016164,2]
[361530725,1747599062403,-450.0,0.00016164,2]
[361530727,1747599062412,-655.93,0.00016164,2]
[361530729,1747599062424,-1017.79,0.00016164,2]
[361530731,1747599062434,-566.27,0.00016164,2]
[361530733,1747599062444,-511.13,0.00016164,2]
[361530735,1747599062454,-450.0,0.00016164,2]
[361530737,1747599062464,-450.0,0.00016164,2]
[361530739,1747599062473,-452.55,0.00016164,2]
[361530741,1747599062484,-565.0,0.00016164,2]
[361530743,1747599062493,-3969.3,0.00016164,2]
[361530745,1747599062503,-450.0,0.00016164,2]
[361530747,1747599062512,-638.0,0.00016164,2]
[361530749,1747599062522,-584.07,0.00016164,2]
[361530751,1747599062531,-1959.3632072,0.00016164,2]
[361530794,1747599062971,-440.30821296,0.00013365,2]
[361530796,1747599062980,-450.0,0.00013835,2]
[361530798,1747599062991,-450.0,0.00013972,2]
[361530800,1747599063000,-450.0,0.00013972,2]
[361530802,1747599063010,-450.0,0.00014109,2]
[361530804,1747599063020,-450.0,0.00014109,2]
[361530806,1747599063030,-555.53,0.00014383,2]
[361530808,1747599063039,-555.53,0.0001452,2]
[361530810,1747599063049,-555.53,0.00014657,2]
[361530811,1747599063059,-1014.1167928,0.00016164,2]
[361530813,1747599063070,-516.98,0.00016164,2]
[361530814,1747599063080,-903.99,0.00016164,2]
[361530816,1747599063090,-1439.98,0.00016164,2]
[361530818,1747599063100,-1871.7,0.00016164,2]
[361530819,1747599063113,-272.82,0.00016164,2]
[361530821,1747599063123,-658.62,0.00016164,2]
[361530823,1747599063133,-686.43227996,0.00016164,2]
[361530825,1747599063151,-555.53,0.00014794,2]
[361530827,1747599063160,-1043.57553006,0.00016164,2]
[361531297,1747599666150,-369.18239021,0.00010328,2]
[361531298,1747599667192,-130.81760979,0.00010328,2]
[361531299,1747599669253,319.18239021,9.812e-05,2]
[361531300,1747599669437,-180.81760979,9.812e-05,2]
[361531301,1747599669460,-34.12504441,0.00010844,2]
[361531302,1747599671455,-285.47993873,0.00010844,2]
[361531303,1747599673572,-180.39501686,0.00010844,2]
[361531304,1747599673595,-119.60498314,0.00011387,2]
[361531305,1747599677143,-259.22002744,9.321e-05,2]
[361531306,1747599679746,-208.98847939,8.855e-05,2]
[361531307,1747599682366,-271.01813992,8.855e-05,2]
[361531308,1747599685329,-300.0,8.412e-05,2]
[361531309,1747599687252,500.0,7.992e-05,2]
[361531310,1747599688423,-200.0,8.412e-05,2]
[361531311,1747599688445,-8.61486814,8.855e-05,2]
[361531312,1747599690941,-11.37851255,8.855e-05,2]
[361531313,1747599690963,-240.77997256,9.321e-05,2]
[361531314,1747599690986,-77.39760426,0.00011387,2]
[361531315,1747599691813,500.0,7.592e-05,2]
[361531316,1747599694297,-302.9974126,0.00011387,2]
[361531317,1747599696417,500.0,7.212e-05,2]
[361531318,1747599701077,509.33980979,6.852e-05,2]
[361531319,1747599828191,450.0,0.00011956,2]
[361531320,1747599872148,-4550.0,0.00011956,2]
[361531321,1747599887007,367.0,0.00011956,2]
[361531331,1747600135530,-4514.0,0.00011836,2]
[361531463,1747600240282,-13.52126554,0.00011836,2]
[361531747,1747600243169,-105.47873446,0.00011836,2]
[361531749,1747600243179,-500.0,0.00011956,2]
[361531751,1747600243189,-500.0,0.00012554,2]
[361531753,1747600243199,-5947.0384847,0.00012671,2]
[361531755,1747600243208,-300.0,0.00012899,2]
[361531757,1747600243218,-500.0,0.00013181,2]
[361531759,1747600243227,-151.0,0.000136,2]
[361531760,1747600243237,-207.4,0.0001369,2]
[361531762,1747600243247,-216.13835571,0.00013697,2]
[361531764,1747600243256,-500.0,0.00013697,2]
[361531767,1747600243266,-500.0,0.00013697,2]
[361531770,1747600243275,-500.0,0.00013697,2]
[361531773,1747600243285,-500.0,0.00013697,2]
[361531776,1747600243294,-385.4,0.00013697,2]
[361531778,1747600243304,-450.0,0.00013698,2]
[361531781,1747600243313,-450.0,0.00013698,2]
[361531784,1747600243322,-450.0,0.00013698,2]
[361531787,1747600243331,-450.0,0.00013698,2]
[361531790,1747600243341,-450.0,0.00013698,2]
[361531792,1747600243350,-168.27293029,0.00013698,2]
[361531795,1747600243359,-450.0,0.00013698,2]
[361531798,1747600243372,-450.0,0.00013698,2]
[361531801,1747600243381,-239.12,0.00013698,2]
[361531804,1747600243390,-450.0,0.00013698,2]
[361531807,1747600243402,-450.0,0.00013698,2]
[361531810,1747600243411,-450.0,0.00013698,2]
[361531812,1747600243420,-450.0,0.00013698,2]
[361531814,1747600243429,-450.0,0.00013698,2]
[361531816,1747600243439,-114.46690622,0.00013698,2]
[361531818,1747600243451,-636.03395413,0.00013698,2]
[361535099,1747601436920,-655.68650244,0.00012931,2]
[361535147,1747601437432,-655.68650244,0.00013598,2]
[361535149,1747601437442,-151.00000001,0.000136,3]
[361535151,1747601437451,-322.02777255,0.000136,2]
[361535152,1747601437461,-151.946912,0.00013683,2]
[361535154,1747601437471,-207.4,0.0001369,2]
[361535156,1747601437480,-450.0,0.00013698,2]
[361535158,1747601437490,-418.58411868,0.00013698,2]
[361535658,1747601443307,-549.44,0.00013698,2]
[361535659,1747601443317,-450.0,0.00013698,2]
[361535660,1747601443326,-450.0,0.00013698,2]
[361535661,1747601443336,-519.51506346,0.00013698,2]
[361535662,1747601443345,-450.0,0.00013698,2]
[361535663,1747601443354,-450.0,0.00013698,2]
[361535664,1747601443363,-351.4977277,0.00013698,2]
[361535665,1747601443372,-450.0,0.00013698,2]
[361535666,1747601443382,-450.0,0.00013698,2]
[361535667,1747601443391,-450.0,0.00013698,2]
[361535668,1747601443404,-450.0,0.00013698,2]
[361535669,1747601443413,-450.0,0.00013698,2]
[361535670,1747601443421,-450.0,0.00013698,2]
[361535671,1747601443430,-450.0,0.00013698,2]
[361535672,1747601443439,-450.0,0.00013698,2]
[361535673,1747601443448,-826.94,0.00013698,2]
[361535674,1747601443458,-450.0,0.00013698,2]
[361535675,1747601443467,-450.0,0.00013698,2]
[361535676,1747601443476,-450.0,0.00013698,2]
[361535677,1747601443485,-450.0,0.00013698,2]
[361535678,1747601443494,-450.0,0.00013698,2]
[361535679,1747601443503,-450.0,0.00013698,2]
[361535680,1747601443516,-450.0,0.00013698,2]
[361535681,1747601443525,-1366.65,0.00013698,2]
[361535682,1747601443534,-450.0,0.00013698,2]
[361535683,1747601443544,-450.0,0.00013698,2]
[361535684,1747601443555,-450.0,0.00013698,2]
[361535685,1747601443565,-2708.33,0.00013698,2]
[361535686,1747601443574,-450.0,0.00013698,2]
[361535687,1747601443584,-450.0,0.00013698,2]
[361535689,1747601443593,-232.03213818,0.00013698,2]
[361535691,1747601443603,-450.0,0.00013698,2]
[361535693,1747601443612,-450.0,0.00013698,2]
[361535695,1747601443621,-473.47,0.00013698,2]
[361535697,1747601443631,-450.0,0.00013698,2]
[361535699,1747601443640,-619.48,0.00013698,2]
[361535701,1747601443652,-450.0,0.00013698,2]
[361535703,1747601443661,-450.0,0.00013698,2]
[361535705,1747601443670,-450.0,0.00013698,2]
[361535707,1747601443680,-450.0,0.00013698,2]
[361535709,1747601443689,-450.0,0.00013698,2]
[361535711,1747601443698,-450.0,0.00013698,2]
[361535713,1747601443708,-450.0,0.00013698,2]
[361535715,1747601443717,-450.0,0.00013698,2]
[361535717,1747601443726,-450.0,0.00013698,2]
[361535719,1747601443735,-450.0,0.00013698,2]
[361535721,1747601443744,-450.0,0.00013698,2]
[361535723,1747601443753,-450.0,0.00013698,2]
[361535725,1747601443763,-403.64829231,0.00013698,2]
[361535727,1747601443773,-450.0,0.00013698,2]
[361535729,1747601443782,-450.0,0.00013698,2]
[361535731,1747601443792,-450.0,0.00013698,2]
[361535733,1747601443801,-1608.96,0.00013698,2]
[361535735,1747601443810,-450.0,0.00013698,2]
[361535737,1747601443820,-939.29,0.00013698,2]
[361535739,1747601443829,-450.0,0.00013698,2]
[361535741,1747601443839,-658.5,0.00013698,2]
[361535743,1747601443848,-489.24,0.00013698,2]
[361535745,1747601443857,-378.02605874,0.00013698,2]
[361535747,1747601443867,-268.82735167,0.00013698,2]
[361535749,1747601443877,-277.94180058,0.00013698,2]
[361535751,1747601443889,-172.05819942,0.00013698,2]
[361535753,1747601443901,-461.85,0.00013698,2]
[361535755,1747601443911,-450.0,0.00013698,2]
[361535757,1747601443920,-450.0,0.00013698,2]
[361535760,1747601443930,-450.0,0.00013698,2]
[361535762,1747601443939,-450.0,0.00013698,2]
[361535764,1747601443949,-450.0,0.00013698,2]
[361535766,1747601443958,-261.80142754,0.00013698,2]
[361535768,1747601443967,-450.0,0.00013698,2]
[361535770,1747601443979,-450.0,0.00013698,2]
[361535772,1747601443988,-778.5,0.00013698,2]
[361535774,1747601443998,-450.0,0.00013698,2]
[361535776,1747601444008,-602.46,0.00013698,2]
[361535778,1747601444017,-277.90618792,0.00013698,2]
[361535780,1747601444026,-450.0,0.00013698,2]
[361535782,1747601444036,-3634.24,0.00013698,2]
[361535784,1747601444045,-178.18418512,0.00013698,2]
[361535878,1747601446203,-271.81581488,0.00013698,2]
[361535879,1747601446213,-203.41,0.00013698,2]
[361535880,1747601446223,-450.0,0.00013698,2]
[361535881,1747601446232,-787.086457,0.00013699,2]
[361535882,1747601446241,-450.0,0.00013835,2]
[361535883,1747601446252,-301.71,0.00013835,2]
[361535884,1747601446262,-450.0,0.00013835,2]
[361535885,1747601446271,-450.0,0.00013835,2]
[361535886,1747601446281,-450.0,0.00013835,2]
[361535887,1747601446290,-826.94,0.00013835,2]
[361535888,1747601446299,-450.0,0.00013835,2]
[361535889,1747601446309,-450.0,0.00013835,2]
[361535890,1747601446318,-450.0,0.00013835,2]
[361535891,1747601446328,-450.0,0.00013835,2]
[361535892,1747601446338,-450.0,0.00013835,2]
[361535893,1747601446347,-450.0,0.00013835,2]
[361535894,1747601446356,-213.5,0.00013835,2]
[361535895,1747601446365,-1366.65,0.00013835,2]
[361535896,1747601446375,-450.0,0.00013835,2]
[361535897,1747601446385,-450.0,0.00013835,2]
[361535898,1747601446394,-570.88772812,0.00013835,2]
[361535899,1747601446412,-623.48253736,0.00013835,2]
[361537814,1747602632355,-200.44034659,0.00012202,2]
[361537826,1747602632868,-1200.0,0.00012704,2]
[361537828,1747602632877,-300.0,0.00012705,2]
[361537830,1747602632887,-300.0,0.00012705,2]
[361537832,1747602632896,-300.0,0.00012705,2]
[361537834,1747602632905,-300.0,0.00012705,2]
[361537836,1747602632915,-6706.43523094,0.00012706,2]
[361537842,1747602632972,-699.856,0.00012706,2]
[361537848,1747602633016,-10771.96712577,0.00012706,2]
[361537850,1747602633028,-6721.74164329,0.00012706,2]
[361537852,1747602633037,-200.44034659,0.00012831,2]
[361537854,1747602633046,-573.72568967,0.00013597,2]
[361537856,1747602633055,-590.7631471,0.00013677,2]
[361537858,1747602633064,-500.0,0.00013697,2]
[361537860,1747602633073,-500.0,0.00013697,2]
[361537862,1747602633082,-555.83047993,0.00013697,2]
[361537864,1747602633091,-500.0,0.00013697,2]
[361537866,1747602633100,-500.0,0.00013697,2]
[361537868,1747602633110,-173.41056725,0.00013697,2]
[361537870,1747602633120,-470.29162091,0.00013697,2]
[361537872,1747602633129,-500.0,0.00013697,2]
[361537874,1747602633138,-500.0,0.00013697,2]
[361537876,1747602633147,-500.0,0.00013697,2]
[361537878,1747602633156,-645.48853481,0.00013697,2]
[361537880,1747602633165,-407.46546862,0.00013698,2]
[361537882,1747602633175,-450.0,0.00013698,2]
[361537884,1747602633185,-450.0,0.00013698,2]
[361537886,1747602633194,-271.18,0.00013698,2]
[361537888,1747602633204,-450.0,0.00013698,2]
[361537890,1747602633215,-375.60244509,0.00013698,2]
[361537892,1747602633224,-450.0,0.00013698,2]
[361537894,1747602633234,-450.0,0.00013698,2]
[361537896,1747602633243,-450.0,0.00013698,2]
[361537898,1747602633252,-204.23657829,0.00013698,2]
[361537900,1747602633261,-450.0,0.00013698,2]